Cogmind - Beta 15 --- EXPLORER MODE // 2025.10.10 @ 23:36:55 Player: viper Result: Destroyed by VX-HKJ(R) with Subdweller Machine Gun Performance ------------- Evolutions (0) 0 Regions Visited (2) 400 Robots Destroyed (16) 80 Value Destroyed (469) 469 Prototype IDs (2) 40 Alien Tech Used (0) 0 Bonus (0) 0 TOTAL SCORE: 989 Bonus ------- None Cogmind --------- Core Integrity 0/250 Matter 235/300 Energy 125/125 System Corruption 1% Temperature Cool (6) Movement Core (300) Ox5 Location -10/Subcaves Parts ------- > --- POWER (1) -------- Light Ion Engine > --- PROPULSION (2) --- (None) > --- UTILITY (3) ------ Medium Storage Unit Terrain Scanner (fused) Utility Shielding > --- WEAPON (2) ------- Assault Rifle Light Assault Rifle > --- INVENTORY (10) --- Light Ion Engine Improved Heat Sink High-capacity Matter Pod (200) Sensor Array Terrain Scanner Core Shielding Beam Cannon Beam Cannon Peak State ------------ > --- POWER ------------ Ion Engine > --- PROPULSION ------- Aluminum Leg Aluminum Leg > --- UTILITY ---------- Medium Storage Unit Terrain Scanner Utility Shielding > --- WEAPON ----------- Light Assault Rifle Light Assault Rifle > --- INVENTORY -------- Light Ion Engine Light Ion Engine Improved Heat Sink High-capacity Matter Pod Sensor Array Terrain Scanner Core Shielding Beam Cannon Beam Cannon Assault Rifle [Rating: 9] Favorites ----------- Power Ion Engine Engine Ion Engine Propulsion Aluminum Leg Leg Aluminum Leg Utility Medium Storage Unit Device Terrain Scanner Storage Medium Storage Unit Protection Utility Shielding Weapon Assault Rifle Energy Cannon Beam Cannon Ballistic Gun Assault Rifle Build | -11 -10 -10 ------- Run | Yrd Mat Sub Slots Evolved 1 | . 1 . Power . | . . . Propulsion . | . . . Utility 1 | . 1 . Weapon . | . . . Parts Attached 16 | 7 7 2 Power 4 | 1 2 1 Engine 4 | 1 2 1 Core . | . . . Reactor . | . . . Propulsion 3 | 2 1 . Treads . | . . . Leg 3 | 2 1 . Wheel . | . . . Hover . | . . . Flight . | . . . Utility 3 | 2 1 . Device 1 | 1 . . Storage 1 | 1 . . Processor . | . . . Hackware . | . . . Protection 1 | . 1 . Artifact . | . . . Weapon 6 | 2 3 1 Energy Gun . | . . . Energy Cannon 2 | . 1 1 Ballistic Gun 4 | 2 2 . Ballistic Cannon . | . . . Launcher . | . . . Special Weapon . | . . . Impact Weapon . | . . . Slashing Weapon . | . . . Piercing Weapon . | . . . Special Melee Weapon . | . . . Unidentified Prototypes . | . . . Parts Lost 5 | . 3 2 Power 1 | . . 1 Propulsion 3 | . 2 1 Utility . | . . . Weapon 1 | . 1 . Highest Loss Streak 2 | . 2 2 To Critical Strikes 1 | . . 1 Average Backups 8 | 3 9 9 Power 1 | . 1 2 Propulsion . | . . . Utility 4 | 1 4 5 Weapon 2 | . 2 2 Tool/Special . | . . . Unused Backups 5 | . . 5 Power . | . . . Propulsion . | . . . Utility 5 | . . 5 Weapon . | . . . Tool/Special . | . . . Average Slot Usage (%) 94 | . 97 86 Engine 11 | . 12 11 Leg 19 | . 22 11 Device 12 | . 12 12 Storage 12 | . 12 12 Protection 12 | . 12 12 Energy Cannon 3 | . . 10 Ballistic Gun 20 | . 23 13 Peak Build Rating 9 | 7 9 8 Average Rating 8 | 5 8 7 On Entrance 5 | . 7 8 Naked Turns . | . . . Heaviest Build 22 | 16 22 22 Greatest Support 20 | 20 20 10 Greatest Overweight (x) 2 | 1 2 2 Average Overweight (x) . | . . 1 Largest Inventory Capacity 10 | 10 10 10 Average Capacity 9 | 8 10 10 Most Carried 10 | 6 10 9 Average Carried 8 | 3 9 8 Final Capacity 10 | 10 10 10 Final Carried 9 | 5 9 8 Class Distribution -------------------- 100% | Hacker-Mutant Dominant Class ---------------- Hacker-Mutant | -10/Materials Hacker-Mutant | -10/Subcaves Resources | -11 -10 -10 ----------- Run | Yrd Mat Sub Matter Collected 783 | 215 568 . Remotely . | . . . Salvage Created 638 | . 638 . Parts 24 | . 24 . Haulers Intercepted 1 | . 1 . Recyclers Shooed . | . . . Parts Field Recycled . | . . . Retrieved Matter . | . . . Parts Self-Destructed . | . . . Prevented . | . . . Kills | -11 -10 -10 ------- Run | Yrd Mat Sub Combat Hostiles Destroyed 11 | . 11 . Guns 10 | . 10 . Cannons 1 | . 1 . Classes Destroyed 5 | . 5 . Worker 2 | . 2 . Hauler 1 | . 1 . Recycler 1 | . 1 . Mechanic 1 | . 1 . Grunt 11 | . 11 . Best Kill Streak 5 | . 5 . Combat Bots Only 4 | . 4 . Max Kills in Single Turn 3 | . 3 . Gunslinging . | . . . Exploded . | . . . Melee . | . . . Uniques/NPCs Destroyed . | . . . Combat | -11 -10 -10 -------- Run | Yrd Mat Sub Hostile Shots Fired 122 | . 104 18 Missed 30 | . 29 1 Hits 92 | . 75 17 Projectile 92 | . 75 17 Critical Strikes 3 | . 1 2 Damage Taken 938 | . 722 216 Core 251 | . 187 64 Absorbed by Shields . | . . . Redirected to Shielding 17 | . 14 3 Ignored by Resistances 566 | . 439 127 Core Remaining (%) 100 | 100 . . Volleys Fired 79 | . 69 10 Largest 2 | . 2 2 Hottest 120 | . 80 120 Shots Fired 156 | . 136 20 Gun 146 | . 129 17 Cannon 10 | . 7 3 Launcher . | . . . Special . | . . . Kinetic 146 | . 129 17 Thermal 10 | . 7 3 Explosive . | . . . Electromagnetic . | . . . Robot Hit Streak 23 | . 23 21 Robot Miss Streak 2 | . 2 . Penetration Max . | . . . Secondary Targets 2 | . 2 . Max Gunslinging Chain 1 | . 1 . Shots Hit Robots 130 | . 116 14 Core Hits 37 | . 35 2 Critical Kills . | . . . Critical Parts Destroyed . | . . . Critical Strikes . | . . . Melee Attacks . | . . . Impact . | . . . Slashing . | . . . Piercing . | . . . Sneak Attacks . | . . . Combat Hostiles . | . . . Follow-up Attacks . | . . . Damage Inflicted 1557 | . 1407 150 Guns 1202 | . 1052 150 Cannons 105 | . 105 . Explosions 247 | . 247 . Melee . | . . . Ramming 3 | . 3 . Kinetic 1202 | . 1052 150 Thermal 105 | . 105 . Explosive 247 | . 247 . Electromagnetic . | . . . Impact . | . . . Slashing . | . . . Piercing . | . . . Highest Corruption 1 | . 1 1 Average Corruption 1 | . 1 1 Corruption Purged . | . . . Corruption Blocked . | . . . Effects 5 | . 4 1 Message Errors 1 | . 1 . Matter Fused 1 | . 1 . Parts Fused 1 | . . 1 Data Loss (major) 1 | . 1 . Weapon Failures 1 | . 1 . Overload Shots . | . . . Overflow Damage . | . . . Projectiles . | . . . Explosions . | . . . Melee . | . . . Knockbacks . | . . . Impact . | . . . Kinetic . | . . . Secondary . | . . . Self-Inflicted Damage 83 | . 83 . Shots 2 | . 2 . Rammed . | . . . Targets Rammed 2 | . 2 . Kicked 2 | . 2 . Crushed . | . . . Highest Temperature 207 | . 207 . Average Temperature 37 | . 37 . Received Heat Transfer 654 | . 594 60 Siege Activations . | . . . Martial Activations . | . . . Shielding Activations . | . . . Robots Disrupted . | . . . Combat Hostiles . | . . . Robots Corrupted . | . . . Combat Hostiles . | . . . Parts Fried . | . . . Impact Corruptions . | . . . Robots Melted . | . . . Combat Hostiles . | . . . Parts Melted 1 | . 1 . Heat Transferred 222 | . 222 . Parts Sabotaged . | . . . Parts Stolen . | . . . Parts Stripped . | . . . Power Chain Reactions . | . . . Alert | -11 -10 -10 ------- Run | Yrd Mat Sub Maximum Alert Level . | . . . Low Security (%) 100 | 100 100 . Level 1 . | . . . Level 2 . | . . . Level 3 . | . . . Level 4 . | . . . Level 5 . | . . . High Security . | . . . Max Security . | . . . Peak Influence 85 | . 85 . Initial . | . . . Average 19 | . 21 . Influence Increases 362 | . 362 . Destroy 0b10 Robot/C 220 | . 220 . Destroy 0b10 Robot/NC 25 | . 25 . Destroy Leader 52 | . 52 . Successful Hack 21 | . 21 . Disable Machine 8 | . 8 . Destroy Structure 36 | . 36 . Influence Decreases 362 | . 352 10 Entered New Map 7 | . . 7 Time Decay 335 | . 332 3 Lost Part 20 | . 20 . Squads Dispatched 1 | . 1 . Investigation 1 | . 1 . Extermination . | . . . Reinforcement . | . . . Assault . | . . . Garrison . | . . . Intercept . | . . . Searches Triggered . | . . . Construction Impeded . | . . . Haulers Reinforced . | . . . Active Scanning Responses . | . . . Cargo Convoy Interrupts . | . . . Stealth | -11 -10 -10 --------- Run | Yrd Mat Sub Distress Signals 1 | . 1 . Communications Jammed . | . . . Distress Signals . | . . . Times Spotted 18 | . 16 2 Peak Tracking Total 5 | . 5 2 Tactical Retreats . | . . . Traps | -11 -10 -10 ------- Run | Yrd Mat Sub Traps Triggered 2 | . 2 . Indirectly . | . . . Trap Hack Attempts . | . . . Triggered . | . . . Disarmed . | . . . Reprogrammed . | . . . Reused . | . . . Traps Extracted . | . . . Installed . | . . . Triggered . | . . . Machines | -11 -10 -10 ---------- Run | Yrd Mat Sub Machines Disabled 2 | . 2 . Max in Single Turn 2 | . 2 . Machines Repaired . | . . . Machines Dismantled . | . . . Machines Sabotaged . | . . . Overloaded Fab Kills . | . . . Hacking | -11 -10 -10 --------- Run | Yrd Mat Sub Machines Accessed 5 | . 5 . Terminals 5 | . 5 . Fabricators . | . . . Repair Stations . | . . . Recycling Units . | . . . Scanalyzers . | . . . Garrison Access . | . . . Total Hacks 23 | . 23 . Successful 17 | . 17 . Failed 6 | . 6 . Catastrophic . | . . . Database Lockouts . | . . . Manual . | . . . Terminals 23 | . 23 . Fabricators . | . . . Repair Stations . | . . . Recycling Units . | . . . Scanalyzers . | . . . Garrison Access . | . . . Terminal Hacks 17 | . 17 . Record 5 | . 5 . Robot Analysis 1 | . 1 . Prototype ID Bank 1 | . 1 . Terminal Index 1 | . 1 . Locate Traps 1 | . 1 . Dispatch Records 2 | . 2 . Maintenance Status 1 | . 1 . Surveillance Status 1 | . 1 . Patrol Status 2 | . 2 . Registered Components 1 | . 1 . Zone Layout 1 | . 1 . Fabricator Hacks . | . . . Repair Station Hacks . | . . . Recycling Unit Hacks . | . . . Scanalyzer . | . . . Garrison Access Hacks . | . . . Unauthorized Hacks . | . . . Terminals . | . . . Fabricators . | . . . Repair Stations . | . . . Recycling Units . | . . . Scanalyzers . | . . . Garrison Access . | . . . Data Cores Recovered . | . . . Used . | . . . Hacking Detections 5 | . 5 . Full Trace Events 4 | . 4 . Feedback Events . | . . . Feedback Blocked . | . . . Robot Schematics Acquired . | . . . Robots Built . | . . . Authchips . | . . . Time . | . . . Total Robot Build Rating . | . . . Part Schematics Acquired . | . . . Parts Built . | . . . Authchips . | . . . Time . | . . . Total Part Build Rating . | . . . Parts Repaired . | . . . Time . | . . . Parts Recycled . | . . . Recycled Matter . | . . . Retrieved Matter . | . . . Retrieved Components . | . . . Parts Scanalyzed . | . . . Part Schematics Acquired . | . . . Parts Damaged . | . . . Bothacking | -11 -10 -10 ------------ Run | Yrd Mat Sub Used RIF Installer . | . . . Robots Hacked . | . . . Non-combat . | . . . Combat . | . . . Robot Hacks Applied . | . . . Relay Couplers Released . | . . . Fabnet Peak Effective % . | . . . Robots Rewired . | . . . Allies Hacked . | . . . Hacks Repelled . | . . . Allies | -11 -10 -10 -------- Run | Yrd Mat Sub Total Allies . | . . . Largest Group . | . . . Highest-Rated Group . | . . . Highest-Rated Ally . | . . . Total Orders . | . . . Ally Attacks . | . . . Total Damage . | . . . Kills . | . . . Allies Corrupted . | . . . Allies Melted . | . . . Intel | -11 -10 -10 ------- Run | Yrd Mat Sub Active Infowar (turns) 1087 | 13 751 323 Terrain 1087 | 13 751 323 Robot Analysis Total 1 | . 1 . Derelict Logs Recovered 1 | . . 1 Drone Launches . | . . . Drone Recoveries . | . . . Exploration | -11 -10 -10 ------------- Run | Yrd Mat Sub Turns Passed 1150 | 76 751 323 Spaces Moved 476 | 56 305 115 Core 25 | 25 . . Treads . | . . . Legs 451 | 31 305 115 Wheels . | . . . Hover . | . . . Flight . | . . . Fastest Speed 50 | 50 120 190 Average Speed 178 | 92 165 252 Slowest Speed 260 | 120 260 260 Overloaded Moves . | . . . Propulsion Burnouts . | . . . Robots Hopped . | . . . Potential Cave-ins . | . . . Cave-ins Triggered . | . . . Exploration Rate (%) 18 | 4 43 8 Regions Visited 2 Branch Regions 1 Pre-discovered Areas . | . . . Known Exits Taken 2 | 1 1 . Unknown Exits Taken . | . . . Scrap Searched . | . . . Spaces Dug . | . . . Terrain Destroyed 46 | . 46 . Melee . | . . . Projectile . | . . . AOE 46 | . 46 . Terrain Rammed . | . . . Walls Destroyed . | . . . Machines Disabled . | . . . Actions | -11 -10 -10 --------- Run | Yrd Mat Sub Total 633 | 77 427 129 Wait 44 | 9 35 . Move 474 | 55 304 115 Hop . | . . . Pick Up 11 | 6 5 . Fast Attach 10 | 6 4 . Attach 4 | 1 2 1 Detach . | . . . Swap 7 | . 4 3 Drop 2 | . 2 . Fire 79 | . 69 10 Melee . | . . . Ram . | . . . Kick 2 | . 2 . Crush . | . . . Escape Stasis . | . . . Rewire . | . . . Trap . | . . . Miscellaneous . | . . . Route ------- -11/Scrapyard -10/Materials -10/Subcaves History --------- Turn | Location | Event 3 | -11/Scrapyard | Identified exit to Materials 3 | -11/Scrapyard | Discovered exit to Materials (range 16) 77 | -11/Scrapyard | Entered Materials 77 | -10/Materials | Evolved 1 slot: Utility x1 300 | -10/Materials | Build established: Hacker-Mutant 515 | -10/Materials | Core integrity fell below 50% 750 | -10/Materials | Identified exit to Subcaves 750 | -10/Materials | Discovered exit to Subcaves (range 9) 828 | -10/Materials | Entered Subcaves 914 | -10/Subcaves | Learned Materials stockpile data 1138 | -10/Subcaves | Core integrity fell below 20% 1151 | -10/Subcaves | Destroyed by VX-HKJ(R) with Subdweller Machine Gun Last Messages --------------- 00811_ U-05 Engineer lays Concrete. 00812_ U-05 Engineer builds a Wall. 00814_ T-07 Excavator is excavating. 00816_ U-05 Engineer lays Concrete. 00817_ U-05 Engineer builds a Wall. 00819_ T-07 Excavator is excavating. 00821_ U-05 Engineer lays Concrete. 00822_ U-05 Engineer builds a Wall. 00823_ T-07 Excavator is excavating. 00824_ U-05 Engineer lays Concrete. 00827_ T-07 Excavator is excavating. LOCATION=SUBCAVES AMBIENT_HEAT=-10 GOAL=ESCAPE 00914_ Acquired derelict log, extracted data. Data stored: Materials stockpile data. 01092_ System corrupted: Terrain Scanner fused. 01139_ Ion Engine destroyed. 01147_ Critical hit (Destroy). 01147_ Aluminum Leg destroyed. Map ----- +----------------------------------------------------+ | ???????????????????????????????????????????? | | ???????????????????????????????????????????? | | ???????????????????????????????????????????? | | ???????????????????????????????????????????? | | ???????????????????????????????????????????? | | ???????????????????????????????????????????? | | ???????????????????????????????????????????? | | ???????????????????????????????????????????? | | ??????????????????????????????????#????????? | | ??????????????????????? ???????????????????? | | ????????????????? ### ##?????????????????? | | ???????????????? ????????? ???????? | | ????????????????? ?????????????????? | | ?????????????????? ?????????????????? | | ????????????????? #?????????????????? | | ????????????????? #?????????????????? | | ?????????????????"?" ###?? ## ##??#????? | | ????????????????#???# "### "#???????? | | ??????????????#??????# """""" """????????? | | ???????????????#???#??##"" "#?????????????? | | ????????????????#????## #####????????????? | | ??????????????#?#####?# #?##????????????? | | ??????????????### ##### ##??????#????????? | | ??????????##??## ### #??#??????? ????? | | ???????????#??# # #######?? ???? | | ????????#?????# @ R # # ???? | | ????????#????### R ???? | | ???????????????## ## #?????? | | ??????????#?????######## # ### ##?????? | | ???????????????#?# ###?## #### ## ?? | | ???????????#??##?# ##?# # ?? | | ???????????#??#??# ### #?? | | ??????????#??????## ## #??? | | ?????????????????## # ## # #???? | | ??????????????#### ###??##?? ##??#? | | ????????#?????# ###???????????? | | ????????????#?## ## ## #?#####???????? | | ??????????????## ###### ##???# ##??????? | | ????????????#?# ###### ##??## ##?#???? | | ??????????????### ## #### #?????? | | ???????????#????## #?????? | | ???????????#?#??## #????#? | | ???????????????## ## #?????? | | ????????????????# ## #### ###????? | | ????????????????# #####?## #???#??? | | ???????????????### #####?## #????#?? | | ????????#????##?## #### #?# #??????? | | ???????????##??## #### #?# ###????? | | ???????????????# #??# #### #????? | | ???????????????### #### ### #????? | +----------------------------------------------------+ Best States ------------- Heat Dissipation 25 Energy Generation 10 Energy Capacity 250 Matter Stores 300 Matter Capacity 300 Sight Range 16 Terrain Scan Range 14 Terrain Scan Density 10 Resistance: KI 35 Resistance: TH 35 Resistance: EX 35 Resistance: EM 35 Resistance: I 35 Resistance: S 35 Resistance: P 35 Utility Shielding 33 Evasion (%) 55 Offensive Hacking 20 Item Schematics ----------------- None Robot Schematics ------------------ None Fabricated ------------ Nothing Repaired ---------- Nothing Alien Tech Used ----------------- None Achievements -------------- None Challenges ------------ None Game ------ Seed ImprovedHybridSaw Manual? 0 Play Time 00:09:48 Cumulative 2167.1 hours Start 2025.10.10 @ 23:28:26 End 2025.10.10 @ 23:36:55 Sessions 1 Manual Loads 0 Difficulty Explorer Special Mode None Game No. 1062 Rogue 62 Adventurer 0 Explorer 1000 Win Type - Total 11 Types 11/0/0/0/0/0/0/0/0/0 Lore% 62 Gallery% 72 Achievement% 64 Wizard Run 0 Options --------- Layout 1 ASCII 0 Keyboard 0 Movement Mouse Keybinds 0 Fullscreen 1 Font 48/Smallcaps Map View 50x35 Zoom Use 0% Tactical HUD 1 Map Filters NONE Filters NONE Steam 1 RUN: 5022609f-2217-4881-8977-b62499742d9e